[Event "Titled Tuesday Blitz March 07 Early 2023"]
[White "Hayrapetyan, Hovik"]
[Black "Prokofiev, Valentyn"]
[WhiteFideId "13302639"]
[BlackFideId "14160161"]
[WhiteElo "2348"]
[BlackElo "2260"]
[Result "1-0"]
[Round "07"]
[TimeControl "180+2"]
[Date "2023.03.07"]
[WhiteClock "0:00:05"]
[BlackClock "0:00:03"]

1. d4 {[%clk 0:03:00]}  Nf6 {[%clk 0:02:59]} 2. c4 {[%clk 0:03:00]}  c5 {[%clk 0:02:57]} 3. d5 {[%clk 0:02:59]}  g6 {[%clk 0:02:57]} 4. Nc3 {[%clk 0:02:59]}  Bg7 {[%clk 0:02:58]} 5. e4 {[%clk 0:02:59]}  d6 {[%clk 0:02:58]} 6. Nf3 {[%clk 0:02:57]}  O-O {[%clk 0:02:59]} 7. h3 {[%clk 0:02:55]}  e6 {[%clk 0:02:59]} 8. Bd3 {[%clk 0:02:54]}  exd5 {[%clk 0:02:59]} 9. cxd5 {[%clk 0:02:55]}  b5 {[%clk 0:02:42]} 10. Bxb5 {[%clk 0:02:17]}  Nxe4 {[%clk 0:02:41]} 11. Nxe4 {[%clk 0:02:18]}  Qa5+ {[%clk 0:02:41]} 12. Nfd2 {[%clk 0:02:17]}  Qxb5 {[%clk 0:02:41]} 13. Nxd6 {[%clk 0:02:17]}  Qa6 {[%clk 0:02:41]} 14. N2c4 {[%clk 0:02:12]}  Nd7 {[%clk 0:02:41]} 15. O-O {[%clk 0:02:08]}  Ne5 {[%clk 0:02:39]} 16. Nxe5 {[%clk 0:02:00]}  Bxe5 {[%clk 0:02:40]} 17. Nxc8 {[%clk 0:01:59]}  Raxc8 {[%clk 0:02:39]} 18. Qf3 {[%clk 0:01:31]}  Rb8 {[%clk 0:02:12]} 19. Re1 {[%clk 0:01:09]}  Bxb2 {[%clk 0:02:09]} 20. Bxb2 {[%clk 0:01:09]}  Rxb2 {[%clk 0:02:09]} 21. Qc3 {[%clk 0:01:07]}  Qb6 {[%clk 0:01:41]} 22. d6 {[%clk 0:01:02]}  c4 {[%clk 0:01:35]} 23. Re3 {[%clk 0:00:57]}  Rxa2 {[%clk 0:00:28]} 24. Rxa2 {[%clk 0:00:41]}  Qb1+ {[%clk 0:00:28]} 25. Kh2 {[%clk 0:00:33]}  Qxa2 {[%clk 0:00:28]} 26. d7 {[%clk 0:00:33]}  Qa4 {[%clk 0:00:24]} 27. Re7 {[%clk 0:00:30]}  Qc6 {[%clk 0:00:20]} 28. Qd4 {[%clk 0:00:16]}  Rd8 {[%clk 0:00:09]} 29. Qe5 {[%clk 0:00:13]}  Rf8 {[%clk 0:00:06]} 30. Qd4 {[%clk 0:00:05]}  Qc7+ {[%clk 0:00:06]} 31. g3 {[%clk 0:00:05]}  Qd8 {[%clk 0:00:06]} 32. Qf6 {[%clk 0:00:03]}  c3 {[%clk 0:00:04]} 33. Qd6 {[%clk 0:00:03]}  c2 {[%clk 0:00:04]} 34. Re1 {[%clk 0:00:03]}  Qg5 {[%clk 0:00:03]} 35. f4 {[%clk 0:00:03]}  Qa5 {[%clk 0:00:02]} 36. Rc1 {[%clk 0:00:03]}  Rd8 {[%clk 0:00:01]} 37. Rxc2 {[%clk 0:00:03]}  Qb5 {[%clk 0:00:02]} 38. Rd2 {[%clk 0:00:02]}  Qb7 {[%clk 0:00:02]} 39. h4 {[%clk 0:00:03]}  Qb8 {[%clk 0:00:01]} 40. Qxb8 {[%clk 0:00:03]}  Rxb8 {[%clk 0:00:02]} 41. d8=Q+ {[%clk 0:00:04]}  Rxd8 {[%clk 0:00:02]} 42. Rxd8+ {[%clk 0:00:04]}  Kg7 {[%clk 0:00:03]} 43. Ra8 {[%clk 0:00:05]} 1-0


[Site "https://www.chess.com"]

[Event "Titled Tuesday Blitz March 07 Early 2023"]
[White "Smirnov, Pavel"]
[Black "Malek, Jan"]
[WhiteFideId "4123425"]
[BlackFideId "21864080"]
[WhiteElo "2519"]
[BlackElo "2255"]
[Result "1-0"]
[Round "07"]
[TimeControl "180+2"]
[Date "2023.03.07"]
[WhiteClock "0:00:06"]
[BlackClock "0:00:02"]

1. d4 {[%clk 0:03:00]}  g6 {[%clk 0:02:57]} 2. e4 {[%clk 0:03:00]}  Bg7 {[%clk 0:02:58]} 3. Nc3 {[%clk 0:03:01]}  d6 {[%clk 0:02:58]} 4. f4 {[%clk 0:03:01]}  Nd7 {[%clk 0:02:57]} 5. Nf3 {[%clk 0:03:01]}  e6 {[%clk 0:02:57]} 6. Be3 {[%clk 0:02:58]}  Ne7 {[%clk 0:02:57]} 7. Bd3 {[%clk 0:02:57]}  b6 {[%clk 0:02:55]} 8. O-O {[%clk 0:02:52]}  Bb7 {[%clk 0:02:56]} 9. Qe2 {[%clk 0:02:52]}  d5 {[%clk 0:02:54]} 10. e5 {[%clk 0:02:51]}  c5 {[%clk 0:02:52]} 11. Nb5 {[%clk 0:02:49]}  Nc8 {[%clk 0:02:52]} 12. c3 {[%clk 0:02:48]}  a6 {[%clk 0:02:51]} 13. Na3 {[%clk 0:02:47]}  c4 {[%clk 0:02:48]} 14. Bc2 {[%clk 0:02:45]}  Ne7 {[%clk 0:02:46]} 15. Nb1 {[%clk 0:02:46]}  h5 {[%clk 0:02:41]} 16. Nbd2 {[%clk 0:02:45]}  Nf5 {[%clk 0:02:41]} 17. Bf2 {[%clk 0:02:45]}  Bh6 {[%clk 0:02:41]} 18. g3 {[%clk 0:02:45]}  b5 {[%clk 0:02:40]} 19. Kg2 {[%clk 0:02:45]}  Qb6 {[%clk 0:02:21]} 20. h3 {[%clk 0:02:44]}  O-O-O {[%clk 0:02:19]} 21. g4 {[%clk 0:02:41]}  hxg4 {[%clk 0:02:11]} 22. hxg4 {[%clk 0:02:42]}  Rdg8 {[%clk 0:01:44]} 23. Rg1 {[%clk 0:02:35]}  Ne7 {[%clk 0:01:34]} 24. Bg3 {[%clk 0:02:34]}  b4 {[%clk 0:01:07]} 25. Rh1 {[%clk 0:02:31]}  Nc6 {[%clk 0:01:01]} 26. Qe3 {[%clk 0:01:33]}  Bf8 {[%clk 0:00:43]} 27. Rab1 {[%clk 0:01:15]}  Qa5 {[%clk 0:00:37]} 28. Ra1 {[%clk 0:01:09]}  Be7 {[%clk 0:00:32]} 29. Ng5 {[%clk 0:01:04]}  Nd8 {[%clk 0:00:28]} 30. Ndf3 {[%clk 0:00:58]}  Nb6 {[%clk 0:00:20]} 31. Nh7 {[%clk 0:00:55]}  Nd7 {[%clk 0:00:16]} 32. g5 {[%clk 0:00:53]}  Nc6 {[%clk 0:00:09]} 33. Nf6 {[%clk 0:00:51]}  Rd8 {[%clk 0:00:09]} 34. Ng4 {[%clk 0:00:39]}  Rdf8 {[%clk 0:00:09]} 35. Rh6 {[%clk 0:00:38]}  Rxh6 {[%clk 0:00:07]} 36. gxh6 {[%clk 0:00:38]}  Rh8 {[%clk 0:00:06]} 37. Ng5 {[%clk 0:00:38]}  Nd8 {[%clk 0:00:04]} 38. a3 {[%clk 0:00:29]}  bxc3 {[%clk 0:00:04]} 39. bxc3 {[%clk 0:00:29]}  Qb6 {[%clk 0:00:04]} 40. Rb1 {[%clk 0:00:29]}  Qa5 {[%clk 0:00:04]} 41. a4 {[%clk 0:00:29]}  Bc6 {[%clk 0:00:04]} 42. Rh1 {[%clk 0:00:23]}  Bxa4 {[%clk 0:00:03]} 43. Ra1 {[%clk 0:00:22]}  Nb6 {[%clk 0:00:04]} 44. Qd2 {[%clk 0:00:20]}  Qb5 {[%clk 0:00:04]} 45. Rb1 {[%clk 0:00:17]}  Qc6 {[%clk 0:00:03]} 46. Rxb6 {[%clk 0:00:16]}  Qxb6 {[%clk 0:00:03]} 47. Bxa4 {[%clk 0:00:17]}  Rf8 {[%clk 0:00:02]} 48. h7 {[%clk 0:00:16]}  Kc7 {[%clk 0:00:02]} 49. Nf6 {[%clk 0:00:16]}  Rh8 {[%clk 0:00:03]} 50. Ne8+ {[%clk 0:00:15]}  Kb8 {[%clk 0:00:03]} 51. Nd6 {[%clk 0:00:15]}  Kc7 {[%clk 0:00:01]} 52. f5 {[%clk 0:00:14]}  gxf5 {[%clk 0:00:01]} 53. Be8 {[%clk 0:00:11]}  Qa5 {[%clk 0:00:01]} 54. Ndxf7 {[%clk 0:00:10]}  Qa1 {[%clk 0:00:02]} 55. Nxh8 {[%clk 0:00:07]}  Qb1 {[%clk 0:00:03]} 56. Ng6 {[%clk 0:00:07]}  Bxg5 {[%clk 0:00:03]} 57. Qxg5 {[%clk 0:00:07]}  Qe4+ {[%clk 0:00:03]} 58. Kh2 {[%clk 0:00:07]}  Qe2+ {[%clk 0:00:04]} 59. Bf2 {[%clk 0:00:07]}  Qxf2+ {[%clk 0:00:04]} 60. Qg2 {[%clk 0:00:06]}  Qe1 {[%clk 0:00:02]} 61. h8=Q {[%clk 0:00:06]}  Qxc3 {[%clk 0:00:02]} 62. Qg7+ {[%clk 0:00:05]}  Kb6 {[%clk 0:00:03]} 63. Qd7 {[%clk 0:00:05]}  Qxd4 {[%clk 0:00:03]} 64. Qd6+ {[%clk 0:00:05]}  Ka7 {[%clk 0:00:03]} 65. Qc7+ {[%clk 0:00:05]}  Nb7 {[%clk 0:00:02]} 66. Bc6 {[%clk 0:00:06]} 1-0


[Site "https://www.chess.com"]

[Event "Titled Tuesday Blitz March 07 Early 2023"]
[White "Tan, Jun Ying"]
[Black "polandchessplayer"]
[WhiteFideId "5710413"]
[WhiteElo "2089"]
[BlackElo "2773"]
[Result "1-0"]
[Round "07"]
[TimeControl "180+2"]
[Date "2023.03.07"]
[WhiteClock "0:00:12"]
[BlackClock "0:00:04"]

1. d4 {[%clk 0:03:00]}  Nf6 {[%clk 0:02:57]} 2. c4 {[%clk 0:03:01]}  e6 {[%clk 0:02:56]} 3. Nc3 {[%clk 0:03:02]}  c5 {[%clk 0:02:56]} 4. d5 {[%clk 0:03:01]}  exd5 {[%clk 0:02:57]} 5. cxd5 {[%clk 0:03:02]}  d6 {[%clk 0:02:57]} 6. e4 {[%clk 0:03:01]}  g6 {[%clk 0:02:58]} 7. h3 {[%clk 0:02:58]}  Bg7 {[%clk 0:02:58]} 8. Nf3 {[%clk 0:02:59]}  O-O {[%clk 0:02:59]} 9. Bd3 {[%clk 0:02:59]}  a6 {[%clk 0:02:59]} 10. a4 {[%clk 0:02:59]}  Nbd7 {[%clk 0:03:00]} 11. O-O {[%clk 0:02:59]}  Qe7 {[%clk 0:03:00]} 12. Bf4 {[%clk 0:02:58]}  Nh5 {[%clk 0:03:01]} 13. Bh2 {[%clk 0:02:58]}  Ne5 {[%clk 0:03:01]} 14. Be2 {[%clk 0:02:57]}  Nxf3+ {[%clk 0:02:47]} 15. Bxf3 {[%clk 0:02:57]}  Nf6 {[%clk 0:02:48]} 16. e5 {[%clk 0:02:48]}  dxe5 {[%clk 0:02:49]} 17. d6 {[%clk 0:02:46]}  Qe6 {[%clk 0:02:41]} 18. Re1 {[%clk 0:02:44]}  Nd7 {[%clk 0:02:41]} 19. Bd5 {[%clk 0:02:31]}  Qe8 {[%clk 0:02:37]} 20. Ne4 {[%clk 0:02:27]}  Rb8 {[%clk 0:02:31]} 21. a5 {[%clk 0:02:23]}  Kh8 {[%clk 0:02:30]} 22. Qc2 {[%clk 0:02:14]}  b6 {[%clk 0:02:25]} 23. axb6 {[%clk 0:02:05]}  Rxb6 {[%clk 0:02:26]} 24. Rad1 {[%clk 0:00:56]}  Qd8 {[%clk 0:02:26]} 25. Ba2 {[%clk 0:00:51]}  Rc6 {[%clk 0:01:48]} 26. Bd5 {[%clk 0:00:45]}  Rb6 {[%clk 0:01:48]} 27. Ba2 {[%clk 0:00:46]}  Rb5 {[%clk 0:01:46]} 28. Nc3 {[%clk 0:00:44]}  Rb8 {[%clk 0:01:44]} 29. Nd5 {[%clk 0:00:43]}  Bb7 {[%clk 0:01:43]} 30. Ne7 {[%clk 0:00:40]}  Qb6 {[%clk 0:01:36]} 31. Bc4 {[%clk 0:00:36]}  Bc8 {[%clk 0:01:21]} 32. b3 {[%clk 0:00:34]}  a5 {[%clk 0:01:18]} 33. h4 {[%clk 0:00:35]}  Ba6 {[%clk 0:01:01]} 34. Bxa6 {[%clk 0:00:34]}  Qxa6 {[%clk 0:01:02]} 35. h5 {[%clk 0:00:34]}  Rb6 {[%clk 0:01:02]} 36. hxg6 {[%clk 0:00:33]}  fxg6 {[%clk 0:00:52]} 37. Nxg6+ {[%clk 0:00:32]}  hxg6 {[%clk 0:00:53]} 38. Qxg6 {[%clk 0:00:32]}  Qc8 {[%clk 0:00:48]} 39. Re4 {[%clk 0:00:31]}  Qd8 {[%clk 0:00:46]} 40. Rd3 {[%clk 0:00:29]}  Nf6 {[%clk 0:00:26]} 41. Bxe5 {[%clk 0:00:26]}  Qe8 {[%clk 0:00:19]} 42. Qg5 {[%clk 0:00:19]}  Rb7 {[%clk 0:00:14]} 43. Rh4+ {[%clk 0:00:16]}  Kg8 {[%clk 0:00:14]} 44. Rg3 {[%clk 0:00:14]}  Qe6 {[%clk 0:00:10]} 45. Qh6 {[%clk 0:00:12]}  Qxe5 {[%clk 0:00:05]} 46. Qh8+ {[%clk 0:00:12]}  Kf7 {[%clk 0:00:05]} 47. Qxg7+ {[%clk 0:00:12]}  Ke8 {[%clk 0:00:06]} 48. Qxb7 {[%clk 0:00:12]}  Qe1+ {[%clk 0:00:04]} 49. Kh2 {[%clk 0:00:13]}  Qxf2 {[%clk 0:00:04]} 50. Qe7# {[%clk 0:00:12]} 1-0


[Site "https://www.chess.com"]

[Event "Titled Tuesday Blitz March 07 Early 2023"]
[White "Real_OceanStorm"]
[Black "Kim, Sergey"]
[BlackFideId "13700570"]
[WhiteElo "2764"]
[BlackElo "2631"]
[Result "1-0"]
[Round "07"]
[TimeControl "180+2"]
[Date "2023.03.07"]
[WhiteClock "0:00:09"]
[BlackClock "0:00:11"]

1. e4 {[%clk 0:02:47]}  e5 {[%clk 0:03:00]} 2. f4 {[%clk 0:02:48]}  Bc5 {[%clk 0:02:58]} 3. Nf3 {[%clk 0:02:46]}  d6 {[%clk 0:02:59]} 4. Bc4 {[%clk 0:02:45]}  Nc6 {[%clk 0:02:59]} 5. c3 {[%clk 0:02:43]}  Nf6 {[%clk 0:02:59]} 6. d4 {[%clk 0:02:41]}  exd4 {[%clk 0:02:59]} 7. cxd4 {[%clk 0:02:40]}  Bb6 {[%clk 0:03:00]} 8. Nc3 {[%clk 0:02:32]}  O-O {[%clk 0:02:59]} 9. e5 {[%clk 0:02:30]}  Ng4 {[%clk 0:02:41]} 10. h3 {[%clk 0:02:20]}  Nh6 {[%clk 0:02:38]} 11. d5 {[%clk 0:02:18]}  Ne7 {[%clk 0:02:29]} 12. g4 {[%clk 0:01:40]}  dxe5 {[%clk 0:02:15]} 13. fxe5 {[%clk 0:01:39]}  Ng6 {[%clk 0:02:15]} 14. Bg5 {[%clk 0:01:30]}  Qe8 {[%clk 0:02:07]} 15. Qe2 {[%clk 0:01:12]}  f6 {[%clk 0:01:24]} 16. Bxh6 {[%clk 0:01:09]}  gxh6 {[%clk 0:01:22]} 17. e6 {[%clk 0:01:09]}  Qe7 {[%clk 0:01:04]} 18. O-O-O {[%clk 0:01:08]}  Bc5 {[%clk 0:00:45]} 19. Qe4 {[%clk 0:01:08]}  a6 {[%clk 0:00:39]} 20. h4 {[%clk 0:00:53]}  Bd6 {[%clk 0:00:38]} 21. Bd3 {[%clk 0:00:48]}  Ne5 {[%clk 0:00:24]} 22. Nd4 {[%clk 0:00:47]}  Nxd3+ {[%clk 0:00:21]} 23. Rxd3 {[%clk 0:00:39]}  Be5 {[%clk 0:00:20]} 24. Nf5 {[%clk 0:00:38]}  Qc5 {[%clk 0:00:19]} 25. e7 {[%clk 0:00:34]}  Re8 {[%clk 0:00:16]} 26. Nxh6+ {[%clk 0:00:28]}  Kg7 {[%clk 0:00:14]} 27. g5 {[%clk 0:00:08]}  Rxe7 {[%clk 0:00:12]} 28. gxf6+ {[%clk 0:00:09]}  Bxf6 {[%clk 0:00:11]} 29. Qf4 {[%clk 0:00:09]} 1-0


[Site "https://www.chess.com"]

[Event "Titled Tuesday Blitz March 07 Early 2023"]
[White "Lorparizangeneh, Shahin"]
[Black "Domingo Nunez, Ruben"]
[WhiteFideId "12521604"]
[BlackFideId "22245570"]
[WhiteElo "2526"]
[BlackElo "2404"]
[Result "1-0"]
[Round "07"]
[TimeControl "180+2"]
[Date "2023.03.07"]
[WhiteClock "0:00:22"]
[BlackClock "0:00:02"]

1. Nf3 {[%clk 0:03:00]}  g6 {[%clk 0:03:00]} 2. g3 {[%clk 0:03:01]}  Bg7 {[%clk 0:03:00]} 3. Bg2 {[%clk 0:03:02]}  Nf6 {[%clk 0:03:01]} 4. b3 {[%clk 0:03:02]}  O-O {[%clk 0:03:02]} 5. Bb2 {[%clk 0:03:02]}  d6 {[%clk 0:03:02]} 6. d4 {[%clk 0:03:02]}  Nbd7 {[%clk 0:03:02]} 7. O-O {[%clk 0:03:01]}  c5 {[%clk 0:03:03]} 8. c4 {[%clk 0:03:00]}  Rb8 {[%clk 0:03:03]} 9. Nc3 {[%clk 0:02:59]}  a6 {[%clk 0:03:03]} 10. dxc5 {[%clk 0:02:50]}  Nxc5 {[%clk 0:03:04]} 11. Nd4 {[%clk 0:02:49]}  Bd7 {[%clk 0:03:04]} 12. Rc1 {[%clk 0:02:44]}  b5 {[%clk 0:03:04]} 13. b4 {[%clk 0:02:44]}  Ne6 {[%clk 0:02:59]} 14. cxb5 {[%clk 0:02:40]}  Nxd4 {[%clk 0:02:51]} 15. Qxd4 {[%clk 0:02:40]}  Ng4 {[%clk 0:02:52]} 16. Qd2 {[%clk 0:02:35]}  Ne5 {[%clk 0:02:46]} 17. bxa6 {[%clk 0:02:04]}  Nc4 {[%clk 0:02:29]} 18. Qc2 {[%clk 0:02:05]}  Rxb4 {[%clk 0:02:17]} 19. Ba1 {[%clk 0:02:04]}  Na3 {[%clk 0:02:03]} 20. Qd3 {[%clk 0:02:03]}  Rd4 {[%clk 0:01:59]} 21. Qe3 {[%clk 0:01:57]}  Nc4 {[%clk 0:01:56]} 22. Qf3 {[%clk 0:01:32]}  Nd2 {[%clk 0:00:53]} 23. Qb7 {[%clk 0:01:31]}  Bc8 {[%clk 0:00:52]} 24. Qb5 {[%clk 0:01:30]}  Nxf1 {[%clk 0:00:39]} 25. Kxf1 {[%clk 0:01:30]}  Bd7 {[%clk 0:00:34]} 26. Qb7 {[%clk 0:01:21]}  Rc4 {[%clk 0:00:33]} 27. a7 {[%clk 0:01:18]}  d5 {[%clk 0:00:20]} 28. Bxd5 {[%clk 0:01:06]}  Bh3+ {[%clk 0:00:16]} 29. Kg1 {[%clk 0:01:06]}  Rc7 {[%clk 0:00:13]} 30. a8=Q {[%clk 0:01:07]}  Qd7 {[%clk 0:00:03]} 31. Qxf8+ {[%clk 0:00:54]}  Bxf8 {[%clk 0:00:03]} 32. Qb3 {[%clk 0:00:55]}  e6 {[%clk 0:00:03]} 33. Bg2 {[%clk 0:00:54]}  Bxg2 {[%clk 0:00:04]} 34. Kxg2 {[%clk 0:00:55]}  Qc6+ {[%clk 0:00:04]} 35. e4 {[%clk 0:00:47]}  Bg7 {[%clk 0:00:04]} 36. Nd5 {[%clk 0:00:40]}  Qxc1 {[%clk 0:00:03]} 37. Qb8+ {[%clk 0:00:40]}  Rc8 {[%clk 0:00:04]} 38. Ne7+ {[%clk 0:00:40]}  Kf8 {[%clk 0:00:02]} 39. Nxc8 {[%clk 0:00:38]}  Bxa1 {[%clk 0:00:01]} 40. Nd6+ {[%clk 0:00:33]}  Kg7 {[%clk 0:00:02]} 41. Qb7 {[%clk 0:00:33]}  Kf6 {[%clk 0:00:01]} 42. Qxf7+ {[%clk 0:00:32]}  Ke5 {[%clk 0:00:02]} 43. Qe7 {[%clk 0:00:21]}  Kd4 {[%clk 0:00:01]} 44. Qxe6 {[%clk 0:00:19]}  Kd3 {[%clk 0:00:01]} 45. Qd5+ {[%clk 0:00:20]}  Ke2 {[%clk 0:00:02]} 46. Qc4+ {[%clk 0:00:20]}  Qxc4 {[%clk 0:00:02]} 47. Nxc4 {[%clk 0:00:21]}  Kd3 {[%clk 0:00:03]} 48. Nd6 {[%clk 0:00:21]}  Be5 {[%clk 0:00:03]} 49. Nf7 {[%clk 0:00:21]}  Bc7 {[%clk 0:00:02]} 50. e5 {[%clk 0:00:22]}  Ke4 {[%clk 0:00:03]} 51. e6 {[%clk 0:00:22]}  Bd6 {[%clk 0:00:02]} 52. Nxd6+ {[%clk 0:00:22]} 1-0


[Site "https://www.chess.com"]

[Event "Titled Tuesday Blitz March 07 Early 2023"]
[White "Vlassov, Nikolai"]
[Black "Hambleton, Aman"]
[WhiteFideId "4103360"]
[BlackFideId "2606577"]
[WhiteElo "2324"]
[BlackElo "2511"]
[Result "1/2-1/2"]
[Round "07"]
[TimeControl "180+2"]
[Date "2023.03.07"]
[WhiteClock "0:00:32"]
[BlackClock "0:00:16"]

1. e4 {[%clk 0:03:00]}  c5 {[%clk 0:02:55]} 2. c3 {[%clk 0:03:00]}  Nf6 {[%clk 0:02:40]} 3. e5 {[%clk 0:03:01]}  Nd5 {[%clk 0:02:41]} 4. d4 {[%clk 0:03:01]}  cxd4 {[%clk 0:02:41]} 5. cxd4 {[%clk 0:03:02]}  d6 {[%clk 0:02:41]} 6. Bc4 {[%clk 0:03:02]}  e6 {[%clk 0:02:39]} 7. Nf3 {[%clk 0:03:02]}  Nc6 {[%clk 0:02:36]} 8. O-O {[%clk 0:03:02]}  Nb6 {[%clk 0:02:31]} 9. Bb3 {[%clk 0:02:50]}  dxe5 {[%clk 0:02:30]} 10. dxe5 {[%clk 0:02:50]}  Qxd1 {[%clk 0:02:29]} 11. Rxd1 {[%clk 0:02:51]}  Na5 {[%clk 0:02:01]} 12. Nc3 {[%clk 0:02:36]}  Bd7 {[%clk 0:01:33]} 13. Nd4 {[%clk 0:02:36]}  Nxb3 {[%clk 0:00:49]} 14. axb3 {[%clk 0:02:35]}  a6 {[%clk 0:00:44]} 15. Be3 {[%clk 0:02:33]}  Rc8 {[%clk 0:00:39]} 16. Rd2 {[%clk 0:01:48]}  Bb4 {[%clk 0:00:20]} 17. Rad1 {[%clk 0:01:36]}  Nd5 {[%clk 0:00:16]} 18. Nde2 {[%clk 0:01:16]}  Bc6 {[%clk 0:00:10]} 19. Bd4 {[%clk 0:01:14]}  O-O {[%clk 0:00:08]} 20. f4 {[%clk 0:01:11]}  h5 {[%clk 0:00:06]} 21. Kf2 {[%clk 0:01:11]}  Rfd8 {[%clk 0:00:06]} 22. Rd3 {[%clk 0:01:07]}  Ne7 {[%clk 0:00:02]} 23. Bb6 {[%clk 0:01:03]}  Rxd3 {[%clk 0:00:03]} 24. Rxd3 {[%clk 0:01:03]}  Nd5 {[%clk 0:00:02]} 25. Bd4 {[%clk 0:00:57]}  g6 {[%clk 0:00:02]} 26. g3 {[%clk 0:00:57]}  Kf8 {[%clk 0:00:02]} 27. h3 {[%clk 0:00:57]}  Ke8 {[%clk 0:00:02]} 28. g4 {[%clk 0:00:57]}  hxg4 {[%clk 0:00:02]} 29. hxg4 {[%clk 0:00:58]}  Kd7 {[%clk 0:00:02]} 30. f5 {[%clk 0:00:57]}  gxf5 {[%clk 0:00:02]} 31. gxf5 {[%clk 0:00:57]}  Rh8 {[%clk 0:00:02]} 32. Kg3 {[%clk 0:00:47]}  Rg8+ {[%clk 0:00:01]} 33. Kf2 {[%clk 0:00:44]}  Kc8 {[%clk 0:00:02]} 34. fxe6 {[%clk 0:00:42]}  fxe6 {[%clk 0:00:03]} 35. Ne4 {[%clk 0:00:41]}  Rf8+ {[%clk 0:00:03]} 36. Nf6 {[%clk 0:00:39]}  Nxf6 {[%clk 0:00:03]} 37. exf6 {[%clk 0:00:39]}  Bb5 {[%clk 0:00:03]} 38. Re3 {[%clk 0:00:37]}  Kd7 {[%clk 0:00:03]} 39. Nf4 {[%clk 0:00:34]}  Bd2 {[%clk 0:00:02]} 40. Ng6 {[%clk 0:00:28]}  Bxe3+ {[%clk 0:00:02]} 41. Kxe3 {[%clk 0:00:28]}  Rf7 {[%clk 0:00:01]} 42. Ne5+ {[%clk 0:00:28]}  Ke8 {[%clk 0:00:02]} 43. Nxf7 {[%clk 0:00:28]}  Kxf7 {[%clk 0:00:03]} 44. Kf4 {[%clk 0:00:29]}  Bc6 {[%clk 0:00:04]} 45. Ke5 {[%clk 0:00:29]}  Bd5 {[%clk 0:00:05]} 46. b4 {[%clk 0:00:29]}  Bc6 {[%clk 0:00:05]} 47. Kd6 {[%clk 0:00:29]}  Bb5 {[%clk 0:00:06]} 48. Kc7 {[%clk 0:00:29]}  Bc6 {[%clk 0:00:07]} 49. Kb6 {[%clk 0:00:29]}  Bd5 {[%clk 0:00:07]} 50. Be5 {[%clk 0:00:30]}  Kg6 {[%clk 0:00:07]} 51. b5 {[%clk 0:00:30]}  axb5 {[%clk 0:00:08]} 52. Kxb5 {[%clk 0:00:30]}  Kf7 {[%clk 0:00:08]} 53. Kc5 {[%clk 0:00:30]}  Bc6 {[%clk 0:00:09]} 54. b4 {[%clk 0:00:30]}  Bd5 {[%clk 0:00:10]} 55. b5 {[%clk 0:00:30]}  Bh1 {[%clk 0:00:11]} 56. Kd6 {[%clk 0:00:30]}  Bg2 {[%clk 0:00:12]} 57. b6 {[%clk 0:00:30]}  Bh1 {[%clk 0:00:13]} 58. Kd7 {[%clk 0:00:31]}  Bg2 {[%clk 0:00:14]} 59. Kd6 {[%clk 0:00:31]}  Bh1 {[%clk 0:00:15]} 60. Kd7 {[%clk 0:00:32]}  Bg2 {[%clk 0:00:16]} 61. Kd6 {[%clk 0:00:32]} 1/2-1/2


[Site "https://www.chess.com"]

[Event "Titled Tuesday Blitz March 07 Early 2023"]
[White "Lortkipanidze, Nodar"]
[Black "Odegov, Artem"]
[WhiteFideId "13604058"]
[BlackFideId "34183644"]
[WhiteElo "2336"]
[BlackElo "2300"]
[Result "1-0"]
[Round "07"]
[TimeControl "180+2"]
[Date "2023.03.07"]
[WhiteClock "0:02:15"]
[BlackClock "0:00:07"]

1. e4 {[%clk 0:03:00]}  e6 {[%clk 0:02:57]} 2. Qe2 {[%clk 0:03:00]}  c5 {[%clk 0:02:54]} 3. g3 {[%clk 0:03:01]}  Nc6 {[%clk 0:02:53]} 4. c3 {[%clk 0:03:01]}  g6 {[%clk 0:02:51]} 5. Bg2 {[%clk 0:03:02]}  Bg7 {[%clk 0:02:51]} 6. f4 {[%clk 0:03:02]}  Nge7 {[%clk 0:02:52]} 7. Nf3 {[%clk 0:03:03]}  O-O {[%clk 0:02:52]} 8. O-O {[%clk 0:03:04]}  d5 {[%clk 0:02:53]} 9. d3 {[%clk 0:03:04]}  b6 {[%clk 0:02:50]} 10. a4 {[%clk 0:03:05]}  Ba6 {[%clk 0:02:50]} 11. Rd1 {[%clk 0:03:04]}  dxe4 {[%clk 0:02:47]} 12. Qxe4 {[%clk 0:03:03]}  Qc7 {[%clk 0:02:48]} 13. Na3 {[%clk 0:03:02]}  Rad8 {[%clk 0:02:45]} 14. Nb5 {[%clk 0:03:02]}  Qc8 {[%clk 0:02:45]} 15. Ne5 {[%clk 0:02:56]}  Bb7 {[%clk 0:02:41]} 16. Nxa7 {[%clk 0:02:55]}  Nxa7 {[%clk 0:01:36]} 17. Qxb7 {[%clk 0:02:53]}  Qxb7 {[%clk 0:01:33]} 18. Bxb7 {[%clk 0:02:54]}  Bxe5 {[%clk 0:01:23]} 19. fxe5 {[%clk 0:02:54]}  Nac6 {[%clk 0:01:24]} 20. Bg5 {[%clk 0:02:51]}  Rd7 {[%clk 0:01:23]} 21. Bxe7 {[%clk 0:02:50]}  Nxe7 {[%clk 0:01:21]} 22. Be4 {[%clk 0:02:50]}  Rfd8 {[%clk 0:01:20]} 23. Kf2 {[%clk 0:02:50]}  Kg7 {[%clk 0:01:15]} 24. a5 {[%clk 0:02:41]}  bxa5 {[%clk 0:01:07]} 25. Rxa5 {[%clk 0:02:42]}  Rb8 {[%clk 0:01:07]} 26. Rd2 {[%clk 0:02:40]}  c4 {[%clk 0:01:00]} 27. d4 {[%clk 0:02:37]}  Nd5 {[%clk 0:00:54]} 28. Bxd5 {[%clk 0:02:36]}  exd5 {[%clk 0:00:55]} 29. Ke3 {[%clk 0:02:36]}  Kf8 {[%clk 0:00:54]} 30. Rf2 {[%clk 0:02:36]}  Ke7 {[%clk 0:00:52]} 31. h4 {[%clk 0:02:34]}  h5 {[%clk 0:00:50]} 32. Kf4 {[%clk 0:02:31]}  Rdb7 {[%clk 0:00:39]} 33. Rxd5 {[%clk 0:02:23]}  Rxb2 {[%clk 0:00:30]} 34. Rxb2 {[%clk 0:02:22]}  Rxb2 {[%clk 0:00:31]} 35. Rc5 {[%clk 0:02:23]}  Rf2+ {[%clk 0:00:14]} 36. Ke3 {[%clk 0:02:23]}  Rg2 {[%clk 0:00:14]} 37. Kf3 {[%clk 0:02:23]}  Ra2 {[%clk 0:00:14]} 38. Rxc4 {[%clk 0:02:24]}  Ke6 {[%clk 0:00:15]} 39. Rc6+ {[%clk 0:02:24]}  Kd5 {[%clk 0:00:15]} 40. Rc5+ {[%clk 0:02:19]}  Ke6 {[%clk 0:00:15]} 41. c4 {[%clk 0:02:19]}  Rd2 {[%clk 0:00:14]} 42. Rc6+ {[%clk 0:02:18]}  Ke7 {[%clk 0:00:13]} 43. Ke4 {[%clk 0:02:18]}  Rg2 {[%clk 0:00:12]} 44. Kf3 {[%clk 0:02:16]}  Rd2 {[%clk 0:00:11]} 45. d5 {[%clk 0:02:16]}  Rd4 {[%clk 0:00:08]} 46. e6 {[%clk 0:02:15]}  fxe6 {[%clk 0:00:07]} 47. Rxe6+ {[%clk 0:02:15]}  Kf7 {[%clk 0:00:07]} 48. Re4 {[%clk 0:02:15]}  Rd1 {[%clk 0:00:07]} 49. Kf4 {[%clk 0:02:13]}  Kf6 {[%clk 0:00:07]} 50. Re6+ {[%clk 0:02:13]}  Kf7 {[%clk 0:00:08]} 51. Ke5 {[%clk 0:02:13]}  Rg1 {[%clk 0:00:07]} 52. c5 {[%clk 0:02:14]}  Rxg3 {[%clk 0:00:06]} 53. c6 {[%clk 0:02:14]}  g5 {[%clk 0:00:04]} 54. c7 {[%clk 0:02:14]}  Rc3 {[%clk 0:00:04]} 55. Rc6 {[%clk 0:02:14]}  Re3+ {[%clk 0:00:03]} 56. Kf5 {[%clk 0:02:14]}  Re8 {[%clk 0:00:02]} 57. c8=Q {[%clk 0:02:14]}  Rxc8 {[%clk 0:00:02]} 58. Rxc8 {[%clk 0:02:15]}  gxh4 {[%clk 0:00:02]} 59. Rh8 {[%clk 0:02:16]}  h3 {[%clk 0:00:02]} 60. Rxh5 {[%clk 0:02:16]}  h2 {[%clk 0:00:03]} 61. Rxh2 {[%clk 0:02:17]}  Kg7 {[%clk 0:00:03]} 62. Re2 {[%clk 0:02:15]}  Kh8 {[%clk 0:00:04]} 63. d6 {[%clk 0:02:16]}  Kg7 {[%clk 0:00:05]} 64. d7 {[%clk 0:02:16]}  Kh7 {[%clk 0:00:06]} 65. d8=Q {[%clk 0:02:16]}  Kh6 {[%clk 0:00:06]} 66. Re6+ {[%clk 0:02:15]}  Kg7 {[%clk 0:00:06]} 67. Qd7+ {[%clk 0:02:14]}  Kh8 {[%clk 0:00:07]} 68. Re8# {[%clk 0:02:15]} 1-0


[Site "https://www.chess.com"]